Cogmind - Beta 13 @@@ ROGUE MODE // 2024.04.07 @ 13:20:29 Player: dohmmass Result: Destroyed by Y-45 Defender with Heavy Assault Rifle Performance ------------- Evolutions (1) 500 Regions Visited (3) 600 Robots Destroyed (45) 225 Value Destroyed (984) 984 Prototype IDs (0) 0 Alien Tech Used (0) 0 Bonus (160) 160 TOTAL SCORE: 2469 Bonus ------- High Alert Combat Kills 160 Cogmind --------- Core Integrity 0/400 Matter 83/300 Energy 99/100 System Corruption 0% Temperature Cool (9) Movement Core (50) Location -9/Storage Parts ------- > --- POWER (1) -------- (None) > --- PROPULSION (2) --- (None) > --- UTILITY (4) ------ Improved Targeting Computer Improved Targeting Computer Improved Targeting Computer Utility Shielding > --- WEAPON (2) ------- Mini Grenade Launcher Mini Grenade Launcher > --- INVENTORY (5) ---- Mini Grenade Launcher Mini Grenade Launcher Peak State ------------ > --- POWER ------------ Improved Ion Engine > --- PROPULSION ------- Wheel Compact Wheel > --- UTILITY ---------- Improved Targeting Computer Improved Targeting Computer Improved Targeting Computer Utility Shielding > --- WEAPON ----------- Mini Grenade Launcher Mini Grenade Launcher > --- INVENTORY -------- Mini Grenade Launcher Mini Grenade Launcher Mini Grenade Launcher [Rating: 15] Favorites ----------- Power Light Ion Engine Engine Light Ion Engine Propulsion Wheel Wheel Wheel Utility Improved Targeting Computer Processor Improved Targeting Computer Protection Utility Shielding Weapon Mini Grenade Launcher Energy Gun Medium Laser Ballistic Gun Assault Rifle Launcher Mini Grenade Launcher Build | -11 -10 -9 -9 ------- Run | Yrd Mat Mat Sto Slots Evolved 2 | . . 2 . Power . | . . . . Propulsion . | . . . . Utility 2 | . . 2 . Weapon . | . . . . Parts Attached 23 | 5 4 . 14 Power 4 | 1 . . 3 Engine 4 | 1 . . 3 Core . | . . . . Reactor . | . . . . Propulsion 7 | 2 3 . 2 Treads . | . . . . Leg . | . . . . Wheel 7 | 2 3 . 2 Hover . | . . . . Flight . | . . . . Utility 5 | . . . 5 Device . | . . . . Storage . | . . . . Processor 4 | . . . 4 Hackware . | . . . . Protection 1 | . . . 1 Artifact . | . . . . Weapon 7 | 2 1 . 4 Energy Gun 2 | 1 . . 1 Energy Cannon . | . . . . Ballistic Gun 1 | 1 . . . Ballistic Cannon . | . . . . Launcher 4 | . 1 . 3 Special Weapon . | . . . . Impact Weapon . | . . . . Slashing Weapon . | . . . . Piercing Weapon . | . . . . Special Melee Weapon . | . . . . Unidentified Prototypes . | . . . . Parts Lost 11 | . . . 11 Power 4 | . . . 4 Propulsion 4 | . . . 4 Utility . | . . . . Weapon 3 | . . . 3 Highest Loss Streak 5 | . . . 5 To Critical Strikes . | . . . . Average Slot Usage (%) 74 | . 71 55 77 Engine 9 | . 14 11 7 Wheel 19 | . 28 22 17 Processor 16 | . . . 22 Protection 6 | . . . 9 Ballistic Gun 5 | . 14 11 2 Launcher 16 | . 12 11 17 Naked Turns . | . . . . Heaviest Build 10 | 7 8 8 10 Greatest Support 32 | 32 32 20 26 Greatest Overweight (x) . | . . . . Average Overweight (x) . | . . . . Largest Inventory Capacity 5 | 5 5 5 5 Average Capacity 5 | 5 5 5 5 Most Carried 5 | 4 2 . 5 Average Carried 1 | . . . 2 Final Capacity 5 | 5 5 5 5 Final Carried 2 | . . . 2 Class Distribution -------------------- 100% | Mutant Dominant Class ---------------- Mutant | -10/Materials Mutant | -9/Materials Mutant | -9/Storage Resources | -11 -10 -9 -9 ----------- Run | Yrd Mat Mat Sto Matter Collected 842 | 250 19 51 522 Remotely . | . . . . Salvage Created 832 | . 152 53 627 Parts 72 | . 19 5 48 Haulers Intercepted 7 | . 2 . 5 Recyclers Shooed 1 | . . . 1 Parts Field Recycled . | . . . . Retrieved Matter . | . . . . Parts Self-Destructed . | . . . . Prevented . | . . . . Kills | -11 -10 -9 -9 ------- Run | Yrd Mat Mat Sto Combat Hostiles Destroyed 23 | . 2 2 19 Guns 1 | . . . 1 AOE 22 | . 2 2 18 Classes Destroyed 9 | . 3 1 5 Worker 6 | . . . 6 Builder 4 | . 3 . 1 Hauler 7 | . 2 . 5 Recycler 2 | . . . 2 Operator 2 | . . 1 1 Watcher 1 | . . . 1 Swarmer 4 | . . . 4 Grunt 14 | . 2 2 10 Sentry 5 | . . . 5 Best Kill Streak 12 | . 7 3 12 Combat Bots Only 5 | . 2 2 5 Max Kills in Single Turn 7 | . 3 2 7 Gunslinging . | . . . . Exploded 5 | . 2 2 5 Melee . | . . . . Uniques/NPCs Destroyed . | . . . . Combat | -11 -10 -9 -9 -------- Run | Yrd Mat Mat Sto Hostile Shots Fired 70 | . 2 3 65 Missed 18 | . 1 . 17 Damage Taken 1053 | . 102 52 899 Core 425 | . 23 10 392 Absorbed by Shields . | . . . . Redirected to Shielding 2 | . . . 2 Core Remaining (%) 95 | 100 90 . . Volleys Fired 50 | . 5 3 42 Largest 2 | . 2 2 2 Hottest 60 | . 50 50 60 Shots Fired 86 | . 9 6 71 Gun 23 | . 5 3 15 Cannon . | . . . . Launcher 63 | . 4 3 56 Special . | . . . . Kinetic 18 | . 5 3 10 Thermal 5 | . . . 5 Explosive 63 | . 4 3 56 Electromagnetic . | . . . . Robot Hit Streak 7 | . 3 3 7 Robot Miss Streak 3 | . 1 2 3 Penetration Max . | . . . . Secondary Targets . | . . . . Shots Hit Robots 34 | . 5 3 26 Core Hits 66 | . 11 4 51 Critical Kills . | . . . . Critical Parts Destroyed . | . . . . Critical Strikes . | . . . . Melee Attacks . | . . . . Impact . | . . . . Slashing . | . . . . Piercing . | . . . . Sneak Attacks . | . . . . Combat Hostiles . | . . . . Follow-up Attacks . | . . . . Damage Inflicted 3187 | . 342 143 2702 Guns 64 | . 23 10 31 Cannons . | . . . . Explosions 3123 | . 319 133 2671 Melee . | . . . . Ramming . | . . . . Kinetic 33 | . 23 10 . Thermal 31 | . . . 31 Explosive 3107 | . 303 133 2671 Electromagnetic 16 | . 16 . . Impact . | . . . . Slashing . | . . . . Piercing . | . . . . Highest Corruption . | . . . . Average Corruption . | . . . . Corruption Purged . | . . . . Corruption Blocked . | . . . . Overload Shots . | . . . . Overflow Damage 159 | . . . 159 Projectiles . | . . . . Explosions 159 | . . . 159 Melee . | . . . . Knockbacks . | . . . . Impact . | . . . . Kinetic . | . . . . Secondary . | . . . . Self-Inflicted Damage 344 | . 88 19 237 Shots 19 | . 3 1 15 Rammed . | . . . . Targets Rammed . | . . . . Kicked . | . . . . Crushed . | . . . . Highest Temperature 19 | . 12 15 19 Average Temperature 7 | . 8 8 7 Received Heat Transfer 336 | . 9 18 309 Siege Activations . | . . . . Robots Corrupted . | . . . . Combat Hostiles . | . . . . Parts Fried . | . . . . Impact Corruptions . | . . . . Robots Melted . | . . . . Combat Hostiles . | . . . . Parts Melted . | . . . . Heat Transferred 75 | . . . 75 Parts Sabotaged . | . . . . Parts Stolen . | . . . . Parts Stripped . | . . . . Power Chain Reactions 1 | . 1 . . Alert | -11 -10 -9 -9 ------- Run | Yrd Mat Mat Sto Peak Influence 989 | . 143 134 989 Initial 59 | . . 59 56 Average 329 | . 72 84 467 Maximum Alert Level 3 | . . . 3 Low Security (%) 48 | 100 100 100 21 Level 1 11 | . . . 17 Level 2 25 | . . . 38 Level 3 14 | . . . 21 Level 4 . | . . . . Level 5 . | . . . . High Security . | . . . . Max Security . | . . . . Squads Dispatched 3 | . . 1 2 Investigation 2 | . . 1 1 Extermination . | . . . . Reinforcement 1 | . . . 1 Assault . | . . . . Garrison . | . . . . Intercept . | . . . . Searches Triggered . | . . . . Construction Impeded . | . . . . Haulers Reinforced . | . . . . Active Scanning Responses . | . . . . Cargo Convoy Interrupts . | . . . . Stealth | -11 -10 -9 -9 --------- Run | Yrd Mat Mat Sto Distress Signals 2 | . . . 2 Communications Jammed . | . . . . Distress Signals . | . . . . Times Spotted 27 | . 3 3 21 Peak Tracking Total 6 | . 3 2 6 Tactical Retreats . | . . . . Traps | -11 -10 -9 -9 ------- Run | Yrd Mat Mat Sto Traps Triggered . | . . . . Indirectly . | . . . . Trap Hack Attempts . | . . . . Triggered . | . . . . Disarmed . | . . . . Reprogrammed . | . . . . Reused . | . . . . Traps Extracted . | . . . . Installed . | . . . . Triggered . | . . . . Machines | -11 -10 -9 -9 ---------- Run | Yrd Mat Mat Sto Machines Disabled 13 | . 2 . 11 Max in Single Turn 2 | . 2 . 2 Machines Repaired . | . . . . Machines Dismantled . | . . . . Machines Sabotaged . | . . . . Overloaded Fab Kills . | . . . . Hacking | -11 -10 -9 -9 --------- Run | Yrd Mat Mat Sto Machines Accessed 3 | . . 1 2 Terminals 3 | . . 1 2 Fabricators . | . . . . Repair Stations . | . . . . Recycling Units . | . . . . Scanalyzers . | . . . . Garrison Access . | . . . . Total Hacks 7 | . . 3 4 Successful 2 | . . 1 1 Failed 5 | . . 2 3 Catastrophic 1 | . . . 1 Database Lockouts . | . . . . Manual . | . . . . Terminals 7 | . . 3 4 Fabricators . | . . . . Repair Stations . | . . . . Recycling Units . | . . . . Scanalyzers . | . . . . Garrison Access . | . . . . Terminal Hacks 2 | . . 1 1 Open Door 1 | . . . 1 Emergency Access Points 1 | . . 1 . Fabricator Hacks . | . . . . Repair Station Hacks . | . . . . Recycling Unit Hacks . | . . . . Scanalyzer . | . . . . Garrison Access Hacks . | . . . . Unauthorized Hacks . | . . . . Terminals . | . . . . Fabricators . | . . . . Repair Stations . | . . . . Recycling Units . | . . . . Scanalyzers . | . . . . Garrison Access . | . . . . Data Cores Recovered 1 | . . 1 . Used . | . . . . Hacking Detections 2 | . . 1 1 Full Trace Events 2 | . . 1 1 Feedback Events . | . . . . Feedback Blocked . | . . . . Robot Schematics Acquired . | . . . . Robots Built . | . . . . Authchips . | . . . . Time . | . . . . Total Robot Build Rating . | . . . . Part Schematics Acquired . | . . . . Parts Built . | . . . . Authchips . | . . . . Time . | . . . . Total Part Build Rating . | . . . . Parts Repaired . | . . . . Time . | . . . . Parts Recycled . | . . . . Recycled Matter . | . . . . Retrieved Matter . | . . . . Retrieved Components . | . . . . Parts Scanalyzed . | . . . . Part Schematics Acquired . | . . . . Parts Damaged . | . . . . Bothacking | -11 -10 -9 -9 ------------ Run | Yrd Mat Mat Sto Used RIF Installer . | . . . . Robots Hacked . | . . . . Non-combat . | . . . . Combat . | . . . . Robot Hacks Applied . | . . . . Relay Couplers Released . | . . . . Fabnet Peak Effective % . | . . . . Robots Rewired . | . . . . Allies Hacked . | . . . . Hacks Repelled . | . . . . Allies | -11 -10 -9 -9 -------- Run | Yrd Mat Mat Sto Total Allies . | . . . . Largest Group . | . . . . Highest-Rated Group . | . . . . Highest-Rated Ally . | . . . . Total Orders . | . . . . Ally Attacks . | . . . . Total Damage . | . . . . Kills . | . . . . Allies Corrupted . | . . . . Allies Melted . | . . . . Intel | -11 -10 -9 -9 ------- Run | Yrd Mat Mat Sto Robot Analysis Total . | . . . . Derelict Logs Recovered . | . . . . Drone Launches . | . . . . Drone Recoveries . | . . . . Exploration | -11 -10 -9 -9 ------------- Run | Yrd Mat Mat Sto Turns Passed 580 | 37 114 47 382 Spaces Moved 452 | 33 96 48 275 Core 55 | 11 . . 44 Treads . | . . . . Legs . | . . . . Wheels 397 | 22 96 48 231 Hover . | . . . . Flight . | . . . . Fastest Speed 50 | 50 80 80 50 Average Speed 84 | 83 93 80 82 Slowest Speed 100 | 100 100 80 100 Overloaded Moves . | . . . . Propulsion Burnouts . | . . . . Robots Hopped . | . . . . Cave-ins Triggered . | . . . . Exploration Rate (%) 28 | 4 34 6 69 Regions Visited 3 Branch Regions 1 Pre-discovered Areas . | . . . . Known Exits Taken . | . . . . Unknown Exits Taken 3 | 1 1 1 . Scrap Searched . | . . . . Spaces Dug 18 | . . . 18 Terrain Destroyed 305 | . 4 25 276 Melee . | . . . . Projectile . | . . . . AOE 305 | . 4 25 276 Terrain Rammed . | . . . . Walls Destroyed . | . . . . Machines Disabled . | . . . . Actions | -11 -10 -9 -9 --------- Run | Yrd Mat Mat Sto Total 561 | 42 110 50 359 Wait 11 | . . . 11 Move 449 | 32 95 47 275 Hop . | . . . . Pick Up 24 | 5 3 . 16 Fast Attach . | . . . . Attach 17 | 5 . . 12 Detach . | . . . . Swap 6 | . 4 . 2 Drop 4 | . 3 . 1 Fire 50 | . 5 3 42 Melee . | . . . . Ram . | . . . . Kick . | . . . . Crush . | . . . . Escape Stasis . | . . . . Rewire . | . . . . Trap . | . . . . Miscellaneous . | . . . . Route ------- -11/Scrapyard -10/Materials -9/Materials -9/Storage History --------- Turn | Location | Event 21 | -11/Scrapyard | Discovered new exit (range 15) 38 | -11/Scrapyard | Entered Materials 140 | -10/Materials | Discovered new exit (range 15) 152 | -10/Materials | Entered another Materials area 152 | -9/Materials | Evolved 2 slots: Utility x2 195 | -9/Materials | Discovered new exit (range 6) 199 | -9/Materials | Entered Storage 312 | -9/Storage | Build established: Mutant 332 | -9/Storage | Lost 5 parts (1p2n2w) 560 | -9/Storage | Core integrity fell below 50% 575 | -9/Storage | Core integrity fell below 20% 581 | -9/Storage | Destroyed by Y-45 Defender with Heavy Assault Rifle Last Messages --------------- 00527_ Acquired 9 matter. 00533_ Acquired Lgt. Ion Engine. 00540_ W-16 Scout sends out distress signal. 00553_ Destroyed Katana. 00553_ Component Storage disabled. 00553_ Terminal disabled. 00556_ Lgt. Ion Engine destroyed. 00559_ Critical hit (Burn: +37). 00559_ Wheel destroyed. 00560_ W-16 Scout destroyed. 00563_ Component Storage disabled. 00563_ Com. Wheel destroyed. 00564_ Mni. Grenade Launcher destroyed. 00567_ The unstable cave ceiling collapses. 00571_ Y-45 Defender destroyed. 00571_ A-02 Transporter destroyed. 00571_ Terminal disabled. 00577_ The unstable cave ceiling collapses. 00577_ Y-45 Defender destroyed. 00578_ The unstable cave ceiling collapses. Map ----- +----------------------------------------------------+ | ????# ##### ##### # # "#?? | | ????# #???# " #?? | | ????# ####???# # """ ]#?? | | ?????######## #??????# " # "" #?? | | ????????????# ######## "" [ #?? | | ????????????# # [[ # #?? | | ????????????# [ [ + """ # ####"T"###?? | | ????????????# [[ # """ #####??#####???? | | ????????????# # #??????????????? | | ????????????## ##### #??????????????? | | ?????????????## # #???###??????????????? | | ??????????????# # #????????????????????? | | ??????????????# + [#????????????????????? | | ??????????????##+########+###????????????????????? | | ?????????????? ??# #??????????????????????? | | ??????????????[[[ ?## #??????????????????????? | | ???????????????[[ ##T #??????????????????????? | | ???????????????[ ###########????????????? | | ?????????????? "" # ###??????????? | | ?????????????? """ #??????????? | | ?????????????? " # ##??????????? | | ??????????????? ?? =* #??????????? | | ???????????????????# %* #??????????? | | ???????????????????# =*= * ##?????????? | | ????????????????????# # = ## #?????????? | | ???????????????? ### =@ ! ! #??????????? | | ??????????? # "T" [ # #????????????? | | ????????????" = #???????????????? | | ????????????" % ###???????????????? | | ????????????" * T#????????????????? | | ????????????" o ## "##????????????????? | | ???????????? ##?! !?????????????????? | | ????????????### #??? !#????????????????? | | ????????????? "Y" #????!#????????????????? | | ????????????? """ #????!#????????????????? | | ?????????????##+#+###### ??????#????????????????? | | ???????????????????????## ???????????????????????? | | ????????????????????????# ???????????????????????? | | ????????????????????????# ???????????????????????? | | ???????????????????????? ???????????????????????? | | ???????????????????????? Y???????????????????????? | | ???????????????????????? ???????????????????????? | | ????????????????????????#????????????????????????? | | ?????????????????????????????????????????????????? | | ?????????????????????????????????????????????????? | | ?????????????????????????????????????????????????? | | ?????????????????????????????????????????????????? | | ?????????????????????????????????????????????????? | | ?????????????????????????????????????????????????? | | | +----------------------------------------------------+ Best States ------------- Heat Dissipation 28 Energy Generation 12 Energy Capacity 265 Matter Stores 300 Matter Capacity 300 Sight Range 16 Terrain Scan Density 10 Utility Shielding 33 Evasion (%) 50 Targeting Accuracy 18 Item Schematics ----------------- None Robot Schematics ------------------ None Fabricated ------------ Nothing Alien Tech Used ----------------- None Achievements -------------- None Challenges ------------ None Game ------ Seed TitaniumHeatReconfigurator Manual? 0 Play Time 00:10:24 Cumulative 25.3 hours Start 2024.04.07 @ 13:09:44 End 2024.04.07 @ 13:20:29 Sessions 1 Manual Loads 0 Difficulty Rogue Special Mode None Game No. 52 Rogue 52 Adventurer 0 Explorer 0 Win Type - Total 0 Types 0/0/0/0/0/0/0/0/0 Lore% 16 Gallery% 30 Achievement% 22 Wizard Run 0 Options --------- Layout 1 ASCII 0 Keyboard 0 Movement Mouse Keybinds 0 Fullscreen 1 Font 24/Smallcaps Map View 50x35 Zoom Use 0% Tactical HUD 1 Map Filters NONE Filters NONE Steam 1 RUN: 53828666-b356-4485-8001-61e288dfe3bd